{"text_format":"1","workbook":"xlsx","n_sheets":2,"sheets":["1","Список"],"not_rendered":{"charts":0,"images":0,"macros":1,"external_links":0,"defined_names":25,"comments":0,"pivot_tables":0},"unopened":[],"bounds":{"document_bytes":16777216,"sheet_cells":100000,"rows_first":2000,"rows_last":500,"rows_between":2000,"halvings":0,"cell_chars":16384,"cell_head_chars":4096},"cells_cut":0,"cells_raw":0,"read":"whole","date_system":"1900"}

{"sheet":"1","index":0,"n_rows":231,"n_cols":9,"rows_kept":231,"cut":false,"hidden":false,"merged":[[226,6,226,7],[228,6,228,7],[0,1,0,6],[1,1,1,6],[2,1,2,6],[3,1,3,6],[4,1,5,1],[4,2,5,2]]}
[null,"РАСШИФРОВКА ",null,null,null,null,null,"Дата изменения:"]
[null,"по бюджету на 2020 год",null,null,null,null,null,"Письмо №","фин-ие"]
[null,"МБОУ Изобильненская СОШ-ДС",null,null,null,null,null,"от "]
[null,"Нижнегорского района Республики Крым"]
[null,"КОСГУ","Наименование статьи","КОД ЦЕЛИ S1520","КОД ЦЕЛИ 71330","КОД ЦЕЛИ 01S1490","КОД  ЦЕЛИ 02590","ВСЕГО по КОСГУ"]
[null,null,null,"Республиканский бюджет ","Республиканский бюджет ","Муниципальный бюджет","Муниципальный бюджет"]
[null,211,"оплату труда",null,8827085]
[null,211]
[null,"211 Итог",null,null,null,null,null,{"$f":"SUM(D7:G8)","v":8827085}]
[null,212,"суточные, пособия ",null,2351.42]
[null,212]
[null,212]
[null,212]
[null,"212 Итог",null,null,null,null,null,{"$f":"SUM(D10:G13)","v":2351.42}]
[null,213,"начисления на з/плату",null,2665780]
[null,213]
[null,213]
[null,"213 Итог",null,null,null,null,null,{"$f":"SUM(D15:G17)","v":2665780}]
[null,221,"услуг связи «телефон»",null,null,null,4176]
[null,221,"услуг связи «интернет»",null,24000]
[null,221]
[null,221]
[null,221]
[null,"221 Итог",null,null,null,null,null,{"$f":"SUM(D19:G23)","v":28176}]
[null,222,"транспортные услуги"]
[null,222,"оплата проезда и проживания к месту нахождения учебы"]
[null,222]
[null,222]
[null,222]
[null,"222 Итог",null,null,null,null,null,{"$f":"SUM(D25:G29)","v":0}]
[null,223,"водоотведение"]
[null,223,"водоснабжение ",null,null,null,1148]
[null,223,"вывоз жидких нечистот"]
[null,223,"отопление Джанкойтепло"]
[null,223,"отопление Промвентиляция"]
[null,223,"электроэнергия",null,null,null,61459]
[null,223]
[null,223]
[null,223]
[null,223]
[null,"223 Итог",null,null,null,null,null,{"$f":"SUM(D31:G40)","v":62607}]
[null,225,"вывоз мусора",null,null,null,4141]
[null,225,"Закупка товаров, работ, услуг в целях капитального ремонта государственного (муниципального) имущества"]
[null,225,"дератизация",null,null,null,6986.63]
[null,225,"заправка картриджей"]
[null,225,"огнезащитная обработка"]
[null,225,"перезарядка огнетушителей"]
[null,225,"поверка монометров, счетчиков …"]
[null,225,"пусконаладочные работы"]
[null,225,"ТО транспортного средства"]
[null,225,"услуги пот ТО, предрейсовый осмотр автобуса"]
[null,225,"техническое обслуживание и текущий ремонт компьютерной техники, используемой в организации образовательного процесса"]
[null,225,"услуги ремонта"]
[null,225,"Производственный контроль"]
[null,225,"электролабораторные измерения"]
[null,225,"установка противопожарных дверей"]
[null,225,"проверка электротоваров"]
[null,225,"энергитическое обследование"]
[null,225]
[null,225]
[null,225]
[null,225]
[null,225]
[null,225]
[null,"225 Итог",null,null,null,null,null,{"$f":"SUM(D42:G64)","v":11127.630000000001}]
[null,226,"Завтраки 1-4 кл",167473]
[null,226,"обработка (аккарицидная, в дез.камеры)",null,null,null,9681.84]
[null,226,"контур отчетность",null,null,null,4100]
[null,226,"медицинские услуги"]
[null,226,"межевание границ земельного участка (кадастровые работы)"]
[null,226,"нотариальные услуги"]
[null,226,"оплата юридических и адвокатских услуг"]
[null,226,"осуществление строительного контроля"]
[null,226,"паспортизация зданий,сооружений, иных основных средств"]
[null,226,"подписку и приобретение периодических изданий, используемых в учебных целях"]
[null,226,"настройка и обслуживание компьютерной сети"]
[null,226,"программное обеспечение технических средств обучения"]
[null,226,"Обеды льготники ",null,null,null,226782]
[null,226,"категарирование"]
[null,226,"Обеды льготники д.с"]
[null,226,"разработка технических условий присоединения к сетям инженерно-технического обеспечения, увеличение мощности"]
[null,226,"работы ПСД"]
[null,226,"типографские работы, услуги"]
[null,226,"техническое обслуживание и текущий ремонт компьютерной техники, используемой в организации образовательного процесса"]
[null,226,"техническое обслуживание Пожарной сигнализации",null,null,null,24614]
[null,226,"услуги по обслуживанию видеонаблюдения",null,null,null,9000]
[null,226,"услуги и работы по утилизации и захоронению отходов"]
[null,226,"спецоценка условий труда"]
[null,226,"услуги по заполнению отчетности и др….",null,null,null,5000]
[null,226,"услуги по обучению"]
[null,226,"Проживание КРИПО"]
[null,226,"услуги по организации проведения торгов (аукционов)"]
[null,226,"услуги установки и ремонта,Глонасс"]
[null,226,"предрейсовый медосмотр водителя"]
[null,226,"стоянка автобуса "]
[null,226,"питание лагерь"]
[null,226,"оплата проезда и проживания к месту нахождения учебы"]
[null,226,"монтаж АСПС"]
[null,226,"обслуживание тревожной кнопки",null,null,null,11395]
[null,226]
[null,226]
[null,"226 Итог",null,null,null,null,null,{"$f":"SUM(D66:G101)","v":458045.83999999997}]
[null,227,"Страхование (водителя,автобуса)"]
[null,227]
[null,227]
[null,227]
[null,"227 Итог",null,null,null,null,null,{"$f":"SUM(D103:G106)","v":0}]
[null,228,"работы ПСД"]
[null,228,"Установка пожарной сигнализации и видеонаблюдения"]
[null,228]
[null,228]
[null,228]
[null,228]
[null,"228 Итог",null,null,null,null,null,{"$f":"SUM(D108:G113)","v":0}]
[null,266,"Бол.пособия за первые три дня временной нетрудоспос"]
[null,266]
[null,266]
[null,"266 Итог",null,null,null,null,null,{"$f":"SUM(D115:G117)","v":0}]
[null,291,851291]
[null,291,852291]
[null,291,853291,null,null,null,3438]
[null,291]
[null,"291 Итог",null,null,null,null,null,{"$f":"SUM(D119:G122)","v":3438}]
[null,292,853292]
[null,292]
[null,292]
[null,"292 Итог",null,null,null,null,null,{"$f":"SUM(D124:G126)","v":0}]
[null,293,853293]
[null,293]
[null,293]
[null,"293 Итог",null,null,null,null,null,{"$f":"SUM(D128:G130)","v":0}]
[null,296,853296]
[null,296]
[null,296]
[null,"296 Итог",null,null,null,null,null,{"$f":"SUM(D132:G134)","v":0}]
[null,310,"огнетушители и пожарный инвентарь"]
[null,310,"подарок к юбилею"]
[null,310,"приобретение игр, игрушек для организации досуга"]
[null,310,"приобретение мебели"]
[null,310,"приобретение письменных и чертёжных принадлежностей, материалов и инвентаря для учебных занятий обучающихся"]
[null,310,"приобретение спортивного оборудования и спортивного инвентаря для обеспечения образовательного процесса"]
[null,310,"приобретение учебников",null,{"$f":"4267+5202.02","v":9469.02}]
[null,310,"приобретение учебно-наглядных пособий и учебных программ"]
[null,310,"формирование библиотечного фонда"]
[null,310,"электроинструменты, оборудование"]
[null,310,"приобретение учебного оборудования и компьютерной техники, используемой в учебных целях",null,15000]
[null,310]
[null,310]
[null,310]
[null,310]
[null,"310 Итог",null,null,null,null,null,{"$f":"SUM(D136:G150)","v":24469.02}]
[null,341,"медикаменты и перевязочные средства"]
[null,341]
[null,341]
[null,341]
[null,"341 Итог",null,null,null,null,null,{"$f":"SUM(D152:G155)","v":0}]
[null,342,"Завтраки 1-4 кл"]
[null,342,"продукты питания льготная категория"]
[null,342]
[null,342]
[null,342]
[null,"342 Итог",null,null,null,null,null,{"$f":"SUM(D157:G161)","v":0}]
[null,343,"уголь "]
[null,343,"дрова"]
[null,343,"бензин"]
[null,343,"ГСМ"]
[null,343,"Масло"]
[null,343]
[null,343]
[null,343]
[null,"343 Итог",null,null,null,null,null,{"$f":"SUM(D163:G170)","v":0}]
[null,344,"Стройматериалы( цемент,песок,доводчик дверной"]
[null,344,"отопительные котлы"]
[null,344,"Электротехнические материалы(лампы,кабель,провод)"]
[null,344]
[null,344]
[null,344]
[null,344]
[null,"344 Итог",null,null,null,null,null,{"$f":"SUM(D172:G178)","v":0}]
[null,345,"Спецодежда"]
[null,345,"Постельное белье и принадлежности"]
[null,345,"Мягкий инвентарь"]
[null,345]
[null,345]
[null,345]
[null,345]
[null,"345 Итог",null,null,null,null,null,{"$f":"SUM(D180:G186)","v":0}]
[null,346,"Журнально-бланочная продукция",null,2500]
[null,346,"Кухонный инвентарь"]
[null,346,"Хозяйственные материалы"]
[null,346,"Приобретение учебно-наглядныхпособияй и учебных программ"]
[null,346,"Спортивное оборудование и спортивный инвентарь для обеспечения образов.процесса"]
[null,346,"Запчасти"]
[null,346,"Приобретение игр,игрушек для организации досуга "]
[null,346,"Канцелярские товары, письменно-чертежные принадлежности",null,1500]
[null,346,"Моющие и дезсредства"]
[null,346]
[null,346]
[null,346]
[null,"346 Итог",null,null,null,null,null,{"$f":"SUM(D188:G199)","v":4000}]
[null,347,"строительные материалы для  кап.вложений"]
[null,347,"строительные материалы для  кап.вложений"]
[null,347]
[null,347]
[null,347]
[null,347]
[null,"347 Итог",null,null,null,null,null,{"$f":"SUM(D201:G206)","v":0}]
[null,349,"Аттестаты, приложения",null,2373]
[null,349,"Трудовые книжки"]
[null,349,"Грамоты,медали,футляры",null,360]
[null,349]
[null,349]
[null,349]
[null,"349 Итог",null,null,null,null,null,{"$f":"SUM(D208:G213)","v":2733}]
[null,351,"Увеличение стоимости права пользования активом"]
[null,351,"Увеличение стоимости права пользования активом"]
[null,351]
[null,351]
[null,"351 Итог",null,null,null,null,null,{"$f":"SUM(D215:G218)","v":0}]
[null,353,"приобретение и обновление справочно-информационных баз данных сопределенным сроком пользования"]
[null,353,"приобретение неисключительных прав, лицензионных прав на ПО с определенным сроком пользования"]
[null,353]
[null,353]
[null,"353 Итог",null,null,null,null,null,{"$f":"SUM(D220:G223)","v":0}]
[null,"Общий итог",null,{"$f":"SUM(D7:D224)","v":167473},{"$f":"SUM(E7:E224)","v":11550418.439999999},{"$f":"SUM(F7:F224)","v":0},371921.47,{"$f":"SUBTOTAL(9,H8:H223)","v":12089812.91}]
[null,null,null,null,null,null,null,{"$f":"H225-H9-H14-H18-H123","v":591158.49000000022}]
[null,null,"Главный бухгалтер",null,null,null,"Синицына Л.В."]
[null,null,0]
[null,null,"Начальник планово-экономического отдела",null,null,null,"Зарицкая Э.А."]
[]
[null,null,null,null,null,null,null,{"$f":"SUMIF(B7:B221,\"*Итог*\",H7:H221)","v":12089812.91}]

{"sheet":"Список","index":1,"n_rows":110,"n_cols":3,"rows_kept":110,"cut":false,"hidden":false,"merged":[]}
["КОСГУ"]
[211,null,"оплату труда"]
[212,null,"суточные, пособия "]
[213,null,"начисления на з/плату"]
[221,1,"услуг связи «телефон»"]
[null,2,"услуг связи «интернет»"]
[222,1,"транспортные услуги"]
[null,2,"оплата проезда и проживания к месту нахождения учебы"]
[223,1,"водоотведение"]
[null,2,"водоснабжение "]
[null,3,"вывоз жидких нечистот"]
[null,4,"отопление Джанкойтепло"]
[null,5,"отопление Промвентиляция"]
[null,6,"электроэнергия"]
[225,1,"вывоз мусора"]
[null,2,"Закупка товаров, работ, услуг в целях капитального ремонта государственного (муниципального) имущества"]
[null,3,"дератизация"]
[null,4,"заправка картриджей"]
[null,5,"огнезащитная обработка"]
[null,6,"перезарядка огнетушителей"]
[null,7,"поверка монометров, счетчиков …"]
[null,8,"пусконаладочные работы"]
[null,9,"ТО транспортного средства"]
[null,10,"услуги пот ТО, предрейсовый осмотр автобуса"]
[null,11,"техническое обслуживание и текущий ремонт компьютерной техники, используемой в организации образовательного процесса"]
[null,12,"услуги ремонта"]
[null,13,"Производственный контроль"]
[null,14,"электролабораторные измерения"]
[null,15,"проверка электротоваров"]
[null,16,"энергитическое обследование"]
[226,1,"обработка (аккарицидная, в дез.камеры)"]
[null,2,"контур отчетность"]
[null,3,"медицинские услуги"]
[null,4,"межевание границ земельного участка (кадастровые работы)"]
[null,5,"монтажные работы"]
[null,6,"нотариальные услуги"]
[null,7,"оплата юридических и адвокатских услуг"]
[null,8,"осуществление строительного контроля"]
[null,9,"паспортизация зданий,сооружений, иных основных средств"]
[null,10,"подписку и приобретение периодических изданий, используемых в учебных целях"]
[null,11,"настройка и обслуживание компьютерной сети"]
[null,12,"приобретение неисключительных прав, лицензионных прав на ПО"]
[null,13,"программное обеспечение технических средств обучения"]
[null,14,"работы ПСД"]
[null,15,"подписку и приобретение периодических изданий, используемых в учебных целях"]
[null,16,"программное обеспечение технических средств обучения"]
[null,17,"разработка технических условий присоединения к сетям инженерно-технического обеспечения, увеличение мощности"]
[null,18,"техническое обслуживание и текущий ремонт компьютерной техники, используемой в организации образовательного процесса"]
[null,19,"техническое обслуживание Пожарной сигнализации"]
[null,20,"услуги по обслуживанию видеонаблюдения"]
[null,21,"услуги и работы по утилизации и захоронению отходов"]
[null,22,"услуги по заполнению отчетности и др…."]
[null,23,"услуги по обучению"]
[null,24,"Проживание КРИПО"]
[null,25,"услуги по организации проведения торгов (аукционов)"]
[null,26,"услуги установки и ремонта"]
[null,27,"оплата проезда и проживания к месту нахождения учебы"]
[227,null,"Страхование (водителя,автобуса)"]
[228,null,"Установка пожарной сигнализации и видеонаблюдения"]
[266,null,"Бол.пособия за первые три дня временной нетрудоспос"]
[291,1,"Налог на имущество,налог на прибыль"]
[292,1,"Штрафы"]
[]
[]
[]
[293,null,"Штрафы"]
[310,1,"огнетушители и пожарный инвентарь"]
[null,2,"подарок к юбилею"]
[null,3,"приобретение игр, игрушек для организации досуга"]
[null,4,"приобретение мебели"]
[null,5,"приобретение письменных и чертёжных принадлежностей, материалов и инвентаря для учебных занятий обучающихся"]
[null,6,"приобретение спортивного оборудования и спортивного инвентаря для обеспечения образовательного процесса"]
[null,7,"приобретение учебников"]
[null,8,"приобретение учебного оборудования и компьютерной техники, используемой в учебных целях"]
[null,9,"приобретение учебно-наглядных пособий и учебных программ"]
[null,10,"формирование библиотечного фонда"]
[null,11,"электроинструменты, оборудование"]
[null,12,"приобретение учебного оборудования и компьютерной техники, используемой в учебных целях"]
[null,13,"приобретение учебников"]
[null,14,"приобретение учебно-наглядных пособий и учебных программ"]
[null,15,"формирование библиотечного фонда"]
[null,16,"приобретение письменных и чертёжных принадлежностей, материалов и инвентаря для учебных занятий обучающихся"]
[null,17,"приобретение спортивного оборудования и спортивного инвентаря для обеспечения образовательного процесса"]
[null,18,"Табличка"]
[null,19,"приобретение игр, игрушек для организации досуга"]
[null,20,"приобретение мебели"]
[341,1,"медикаменты и перевязочные средства"]
[342,1,"продукты питания льготная категория"]
[343,1,"уголь "]
[null,2,"дрова"]
[null,3,"бензин"]
[null,4,"ГСМ"]
[null,5,"Масло"]
[344,1,"Стройматериалы( цемент,песок,доводчик дверной"]
[null,2,"отопительные котлы"]
[null,3,"Электротехническте материалы(лампы,кабель,провод)"]
[345,1,"Спецодежда"]
[null,2,"Постельное белье и принадлежности"]
[null,3,"Мягкий инвентарь"]
[346,1,"Журнально-бланочная продукция"]
[null,2,"Кухонный инвентарь"]
[null,3,"Хозяйственные материалы"]
[null,4,"Учебно-наглядные пособия"]
[null,5,"Спортивное оборудование и спортивный инвентарь"]
[null,6,"Запчасти"]
[null,7,"Канцелярские товары, письменно-чертежные принадлежности"]
[null,8,"Моющие и дезсредства"]
[349,1,"Аттестаты, приложения"]
[null,2,"Трудовые книжки"]
[null,3,"Грамоты,медали,футляры"]